[Event "Marshall CC U2400 January 2024"]
[Site "New York"]
[Date "2024.01.20"]
[Round "2.4"]
[White "Gutnik, Aleksandr"]
[Black "Ulloa Centeno, Leandro Nicolas"]
[Result "0-1"]
[ECO "B31"]
[WhiteElo "1956"]
[BlackElo "1647"]
[Annotator "NA RC"]
[PlyCount "104"]
[EventDate "2024.01.19"]
[EventType "swiss"]
[EventCountry "USA"]
[SourceTitle "playchess.com"]
[Source "ChessBase"]
[SourceQuality "1"]
[TimeControl "5400+30"]

1. e4 {[%emt 0:00:27]} c5 {[%emt 0:00:08]} 2. Nf3 {[%emt 0:00:14]} Nc6 {[%emt 0:00:15]} 3. Bb5 {[%emt 0:00:24]} g6 {[%emt 0:00:17]} 4. O-O {[%emt 0:00:38]} Bg7 {[%emt 0:00:24]} 5. Qe2 {[%emt 0:00:41]} a6 {[%emt 0:00:41]} 6. Bxc6 {[%emt 0:00:33]} dxc6 {[%emt 0:00:07]} 7. d3 {[%emt 0:01:45]} Nf6 {[%emt 0:00:49]} 8. h3 {[%emt 0:00:49]} O-O {[%emt 0:00:24]} 9. Nc3 {[%emt 0:02:02]} Qc7 {[%emt 0:11:53]} 10. Be3 {[%emt 0:04:51]} b6 {[%emt 0:04:35]} 11. Qd2 {[%emt 0:03:41]} e5 {[%emt 0:12:40]} 12. Bh6 {[%emt 0:07:42]} Re8 {[%emt 0:04:08]} 13. Bxg7 {[%emt 0:03:55]} Kxg7 {[%emt 0:00:02]} 14. Qe3 {[%emt 0:03:33]} h6 {[%emt 0:03:23]} 15. b3 {[%emt 0:04:42]} Be6 {[%emt 0:04:08]} 16. Nd2 {[%emt 0:01:34]} Nh5 {[%emt 0:09:46]} 17. Ne2 {[%emt 0:06:29]} g5 {[%emt 0:04:42]} 18. Qf3 {[%emt 0:03:37]} Kg6 {[%emt 0:01:12]} 19. Nc4 {[%emt 0:00:54]} Bxc4 {[%emt 0:03:22]} 20. bxc4 {[%emt 0:00:11]} Qd7 {[%emt 0:01:47]} 21. Kh2 {[%emt 0:04:13]} b5 {[%emt 0:04:17]} 22. Qe3 {[%emt 0:02:53]} Qd6 {[%emt 0:01:24]} 23. Ng3 {[%emt 0:04:06]} Ng7 {[%emt 0:02:34]} 24. Qf3 {[%emt 0:04:12]} Qf6 {[%emt 0:01:30]} 25. Nf5 {[%emt 0:01:04]} Nxf5 {[%emt 0:00:34]} 26. exf5+ {[%emt 0:00:10]} Kg7 {[%emt 0:04:13]} 27. Qe4 {[%emt 0:01:12] [#]} ({White should play} 27. Rae1 $11) 27... Rad8 $1 {[%emt 0:00:38]} 28. c3 {[%emt 0:00:15] [#]} b4 $1 {[%emt 0:00:07]} 29. cxb4 {[%emt 0:01:40]} cxb4 {[%emt 0:00:21]} 30. Rae1 {[%emt 0:02:44]} c5 {[%emt 0:02:50]} 31. Re3 {[%emt 0:06:13]} Rd4 {[%emt 0:00:28]} 32. Qb7 {[%emt 0:01:54]} Qxf5 {[%emt 0:03:33]} 33. Qc6 {[%emt 0:05:39]} Re6 {[%emt 0:02:10]} 34. Qxc5 {[%emt 0:00:45]} Rxd3 {[%emt 0:00:06]} 35. Kg1 {[%emt 0:05:29]} Rxe3 {[%emt 0:03:00]} 36. fxe3 {[%emt 0:00:11]} Qe4 {[%emt 0:00:17]} ({Black should try} 36... Qd3 $17 37. Rf2 Qc3) 37. Qa7 {[%emt 0:02:54]} Rf6 {[%emt 0:03:33]} 38. Rxf6 {[%emt 0:01:50]} Kxf6 {[%emt 0:00:02]} 39. Qxa6+ {[%emt 0:00:59]} ({White should play} 39. Qc5 $1 $15) 39... Kg7 {[%emt 0:00:02]} 40. Kf2 {[%emt 0:01:07]} Qc2+ {[%emt 0:00:06]} 41. Kf1 {[%emt 0:05:52]} e4 {[%emt 0:01:34]} 42. Qb5 {[%emt 0:04:35]} Qb1+ {[%emt 0:02:48]} 43. Kf2 {[%emt 0:00:15]} Qxa2+ {[%emt 0:00:03]} 44. Kg3 {[%emt 0:00:21]} Qb2 {[%emt 0:00:33]} 45. Qd5 {[%emt 0:01:28]} Qc3 {[%emt 0:01:17]} 46. Qxe4 {[%emt 0:00:02]} b3 {[%emt 0:00:01]} 47. h4 {[%emt 0:02:04]} b2 {[%emt 0:02:07]} 48. hxg5 {[%emt 0:00:13]} Qe1+ {[%emt 0:00:37]} 49. Kh2 {[%emt 0:00:32]} b1=Q {[%emt 0:00:42]} 50. gxh6+ {[%emt 0:01:02]} Kxh6 {[%emt 0:00:22]} 51. Qf4+ {[%emt 0:00:12]} Kg6 {[%emt 0:01:13]} 52. Qg4+ {[%emt 0:00:48]} Kh7 {[%emt 0:00:13]} 0-1

[Event "Marshall CC U2400 January 2024"]
[Site "New York"]
[Date "2024.01.20"]
[Round "2.5"]
[White "Goel, Raben"]
[Black "Kozower, Ethan"]
[Result "0-1"]
[ECO "A47"]
[WhiteElo "1468"]
[BlackElo "1904"]
[Annotator "NA RC"]
[PlyCount "92"]
[EventDate "2024.01.19"]
[EventType "swiss"]
[EventCountry "USA"]
[SourceTitle "playchess.com"]
[Source "ChessBase"]
[SourceQuality "1"]
[TimeControl "5400+30"]

1. d4 {[%emt 0:00:07]} Nf6 {[%emt 0:00:55]} 2. Bf4 {[%emt 0:00:18]} b6 {[%emt 0:02:12]} 3. Nf3 {[%emt 0:01:02]} e6 {[%emt 0:00:26]} 4. e3 {[%emt 0:00:27]} Bb7 {[%emt 0:00:14]} 5. Nbd2 {[%emt 0:00:41]} Be7 {[%emt 0:00:36]} 6. Bd3 {[%emt 0:00:33]} Nh5 {[%emt 0:01:06]} 7. Bg3 {[%emt 0:00:21]} c5 {[%emt 0:04:28]} 8. c3 {[%emt 0:02:59]} cxd4 {[%emt 0:11:31]} 9. exd4 {[%emt 0:00:25]} d6 {[%emt 0:02:23]} 10. Qe2 {[%emt 0:06:35]} Nd7 {[%emt 0:03:26]} 11. Nc4 {[%emt 0:04:05]} Nxg3 {[%emt 0:01:58]} 12. hxg3 {[%emt 0:00:10]} Qc7 {[%emt 0:16:42]} 13. O-O {[%emt 0:20:03]} O-O {[%emt 0:04:33]} 14. Ne3 {[%emt 0:07:12]} Rfe8 {[%emt 0:03:01]} 15. Qc2 {[%emt 0:14:32]} g6 {[%emt 0:03:19]} 16. g4 {[%emt 0:03:40]} Kg7 {[%emt 0:08:38]} 17. Nh2 {[%emt 0:01:33]} e5 {[%emt 0:02:34]} 18. d5 {[%emt 0:03:22]} Bg5 {[%emt 0:00:54]} 19. c4 {[%emt 0:01:45]} Rac8 {[%emt 0:05:57]} 20. Rac1 {[%emt 0:11:08]} Nf6 {[%emt 0:02:05]} 21. Qd2 $17 {[%emt 0:01:57]} Kg8 {[%emt 0:03:10]} 22. Qe2 {[%emt 0:09:22]} Qe7 {[%emt 0:01:58]} 23. Rfe1 {[%emt 0:02:55]} Rc7 {[%emt 0:01:14]} 24. Rc3 {[%emt 0:02:32]} Bc8 {[%emt 0:00:25]} 25. Nhf1 {[%emt 0:01:14]} (25. Qd1 $17) 25... Qf8 {[%emt 0:00:46]} 26. Bb1 {[%emt 0:03:19]} (26. Ng3 $17) 26... Qh6 {[%emt 0:00:37]} 27. f3 {[%emt 0:00:49]} e4 {[%emt 0:02:40]} 28. Qf2 {[%emt 0:00:43]} Rce7 {[%emt 0:01:36]} 29. a3 {[%emt 0:00:36]} Kg7 {[%emt 0:01:24]} 30. b4 {[%emt 0:00:25]} exf3 {[%emt 0:00:55]} 31. Qxf3 {[%emt 0:00:37]} Nxg4 {[%emt 0:03:36]} 32. Nxg4 {[%emt 0:00:15]} Bxg4 {[%emt 0:00:02]} 33. Rxe7 {[%emt 0:00:44]} Bxf3 {[%emt 0:02:59]} 34. Rxe8 {[%emt 0:00:11]} Bg4 {[%emt 0:00:10]} 35. Rg3 {[%emt 0:00:39]} Bd7 {[%emt 0:01:47]} 36. Rb8 {[%emt 0:00:40]} Bf4 {[%emt 0:00:16]} 37. Rf3 {[%emt 0:00:31]} Bg4 {[%emt 0:00:15]} 38. Rb3 {[%emt 0:00:22]} Be5 {[%emt 0:04:23]} 39. Ne3 {[%emt 0:00:32]} Bd7 {[%emt 0:00:04]} 40. Rd3 {[%emt 0:00:37]} Qf4 {[%emt 0:04:00]} 41. Nc2 {[%emt 0:00:29]} Qc1+ {[%emt 0:00:18]} 42. Kf2 {[%emt 0:00:14]} Qxb1 {[%emt 0:00:16]} 43. Ne1 {[%emt 0:00:21]} Qb2+ {[%emt 0:01:09]} 44. Kf1 {[%emt 0:00:38]} Bd4 {[%emt 0:00:39]} 45. Rf3 {[%emt 0:00:26]} Bg4 {[%emt 0:00:11]} 46. Rf4 {[%emt 0:00:51]} Be2# {[%emt 0:00:09]} 0-1

[Event "Marshall CC U2400 January 2024"]
[Site "New York"]
[Date "2024.01.21"]
[Round "3.1"]
[White "Kozower, Ethan"]
[Black "Hoffman, Luc"]
[Result "1/2-1/2"]
[ECO "B12"]
[WhiteElo "1904"]
[BlackElo "2068"]
[Annotator "NA RC"]
[PlyCount "145"]
[EventDate "2024.01.19"]
[EventType "swiss"]
[EventCountry "USA"]
[SourceTitle "playchess.com"]
[Source "ChessBase"]
[SourceQuality "1"]
[TimeControl "5400+30"]

1. e4 {[%emt 0:02:49]} c6 {[%emt 0:01:11]} 2. d4 {[%emt 0:00:42]} d5 {[%emt 0:00:06]} 3. e5 {[%emt 0:00:25]} Bf5 {[%emt 0:00:08]} 4. h4 {[%emt 0:00:19]} h5 {[%emt 0:00:13]} 5. Bd3 {[%emt 0:00:03]} Qd7 {[%emt 0:00:07]} 6. Ne2 {[%emt 0:03:10]} Bxd3 {[%emt 0:03:30]} 7. Qxd3 {[%emt 0:00:18]} e6 {[%emt 0:00:08]} 8. O-O {[%emt 0:11:43]} c5 {[%emt 0:02:30]} 9. c4 {[%emt 0:08:25]} dxc4 {[%emt 0:01:34]} 10. Qxc4 {[%emt 0:00:43]} Qc6 {[%emt 0:00:34]} (10... Nc6 $11) 11. Be3 {[%emt 0:06:24]} Nd7 {[%emt 0:02:18]} 12. Nbc3 {[%emt 0:06:47]} Ne7 {[%emt 0:04:36]} 13. Qd3 {[%emt 0:13:56]} Rd8 {[%emt 0:02:45]} 14. f4 {[%emt 0:06:53]} c4 {[%emt 0:02:58]} 15. Qc2 {[%emt 0:04:37]} Nf5 {[%emt 0:02:22]} 16. Bf2 {[%emt 0:00:57]} Nb6 {[%emt 0:00:38]} 17. Rfd1 {[%emt 0:01:14]} Be7 {[%emt 0:00:42]} 18. g3 {[%emt 0:05:18]} Nd5 {[%emt 0:01:51]} 19. Nxd5 {[%emt 0:00:54]} Qxd5 {[%emt 0:02:16]} 20. Nc3 {[%emt 0:03:46]} Qf3 {[%emt 0:00:30]} 21. Qe4 {[%emt 0:01:41]} Qg4 {[%emt 0:01:10]} 22. Qe2 {[%emt 0:03:03]} (22. Qxb7 $2 {too greedy.} Bxh4 23. Qg2 (23. Qxa7 $2 {loses.} Nxg3 24. d5 O-O $19) 23... Bxg3 24. Bxg3 Nxg3 $19) 22... Qh3 {[%emt 0:01:32]} 23. Qf1 {[%emt 0:00:40]} Qg4 {[%emt 0:00:41]} 24. Qe2 $1 {[%emt 0:02:17]} (24. Qxc4 $2 {loses.} Bxh4 25. Ne4 Nxg3 26. Qa4+ Rd7 27. Bxg3 (27. Nd6+ $2 Ke7 $19) 27... Bxg3 28. Nd6+ Ke7 $19) 24... Qh3 {[%emt 0:00:25]} 25. Qf1 {[%emt 0:01:55]} Qxf1+ {[%emt 0:01:36]} 26. Kxf1 {[%emt 0:00:08]} Bb4 {[%emt 0:00:04]} 27. Rac1 {[%emt 0:03:38]} Ne7 {[%emt 0:01:54]} 28. Ne4 {[%emt 0:04:11]} Nc6 {[%emt 0:02:43]} 29. Rxc4 {[%emt 0:00:34]} Be7 {[%emt 0:00:01]} 30. Nc3 {[%emt 0:02:22]} Bb4 {[%emt 0:00:19]} 31. Ne4 {[%emt 0:03:31]} Be7 {[%emt 0:02:13]} 32. a3 {[%emt 0:00:00]} f6 {[%emt 0:01:32]} 33. Ke2 {[%emt 0:00:37]} O-O {[%emt 0:00:27]} 34. Nc3 {[%emt 0:01:41]} Kf7 {[%emt 0:01:49]} 35. d5 {[%emt 0:00:39]} exd5 {[%emt 0:00:36]} 36. Nxd5 {[%emt 0:00:03]} fxe5 {[%emt 0:00:59]} 37. Nxe7 {[%emt 0:00:07]} Nxe7 {[%emt 0:00:44]} 38. fxe5 {[%emt 0:00:58]} Rxd1 {[%emt 0:00:23]} 39. Kxd1 {[%emt 0:01:01]} Ke6 {[%emt 0:00:28]} (39... Rd8+ $14 {feels stronger.} 40. Kc2 Nc6) 40. Bxa7 {[%emt 0:00:53]} Nc6 {[%emt 0:00:05]} 41. Be3 {[%emt 0:00:49]} Kxe5 {[%emt 0:01:14]} 42. Rc5+ {[%emt 0:00:47]} Ke4 {[%emt 0:00:13]} 43. Bf4 {[%emt 0:00:05]} Rf5 {[%emt 0:01:12]} 44. Rxf5 {[%emt 0:00:24]} Kxf5 {[%emt 0:00:01]} 45. Kd2 {[%emt 0:00:21]} Ke4 {[%emt 0:00:10]} 46. Kc3 {[%emt 0:00:22]} Kd5 {[%emt 0:00:06]} 47. b4 {[%emt 0:00:41]} b5 {[%emt 0:00:33]} 48. Be3 {[%emt 0:00:38]} Ke4 {[%emt 0:00:08]} 49. Bc5 {[%emt 0:00:21]} Kf3 {[%emt 0:00:26]} 50. Bd6 {[%emt 0:00:04]} Ke4 {[%emt 0:00:02]} 51. Kb3 {[%emt 0:01:26]} Nd4+ {[%emt 0:00:05]} 52. Kb2 {[%emt 0:00:06]} Kd5 {[%emt 0:02:03]} 53. Bf4 {[%emt 0:00:59]} Kc4 {[%emt 0:00:18]} 54. Be5 {[%emt 0:00:21]} Nf5 $11 {[%emt 0:00:24]} 55. Kc2 {[%emt 0:00:20]} g6 {[%emt 0:00:05]} 56. Bf4 {[%emt 0:00:30]} Nd4+ {[%emt 0:00:06]} 57. Kb2 {[%emt 0:00:24]} Nf5 {[%emt 0:00:11]} 58. Ka2 {[%emt 0:00:29]} Nd4 {[%emt 0:00:14]} 59. Bd6 {[%emt 0:00:23]} Nf5 {[%emt 0:00:05]} 60. Be5 {[%emt 0:00:14]} Ne3 {[%emt 0:00:18]} 61. Kb2 {[%emt 0:00:25]} Ng4 {[%emt 0:00:49]} 62. Bf4 {[%emt 0:00:31]} Nf6 {[%emt 0:00:13]} 63. Kc2 {[%emt 0:00:32]} Nd5 {[%emt 0:00:45]} 64. Bh6 {[%emt 0:00:36]} Nf6 {[%emt 0:00:09]} 65. Bf4 {[%emt 0:00:30]} Nd5 {[%emt 0:00:17]} 66. Bg5 {[%emt 0:00:02]} Nc7 {[%emt 0:00:10]} 67. Bf4 {[%emt 0:01:38]} Nd5 {[%emt 0:00:06]} 68. Bg5 {[%emt 0:01:10]} Nc7 69. Kd2 {[%emt 0:00:30]} Kb3 70. Kd3 {[%emt 0:00:30]} Kxa3 {[%emt 1:04:29]} 71. Ke4 {[%emt 0:00:30]} Kxb4 {[%emt 0:00:30]} 72. Ke5 Kc3 {[%emt 0:00:30]} 73. Kf6 {[%emt 0:01:00]} 1/2-1/2

[Event "Marshall CC U2400 January 2024"]
[Site "New York"]
[Date "2024.01.21"]
[Round "3.2"]
[White "Jiang, Jason"]
[Black "Ulloa Centeno, Leandro Nicolas"]
[Result "1-0"]
[ECO "E67"]
[WhiteElo "1864"]
[BlackElo "1647"]
[Annotator "NA RC COMBH"]
[PlyCount "81"]
[EventDate "2024.01.19"]
[EventType "swiss"]
[EventCountry "USA"]
[SourceTitle "playchess.com"]
[Source "ChessBase"]
[SourceQuality "1"]
[TimeControl "5400+30"]

1. c4 {[%emt 0:00:03]} Nf6 {[%emt 0:00:12]} 2. Nc3 {[%emt 0:00:07]} g6 {[%emt 0:00:31]} 3. g3 {[%emt 0:01:18]} Bg7 {[%emt 0:00:27]} 4. Bg2 {[%emt 0:00:12]} e5 {[%emt 0:00:40]} 5. Nf3 {[%emt 0:00:34]} d6 {[%emt 0:00:41]} 6. d4 {[%emt 0:01:10]} exd4 {[%emt 0:00:30]} 7. Nxd4 {[%emt 0:00:13]} O-O {[%emt 0:00:40]} 8. O-O {[%emt 0:00:38]} Nbd7 {[%emt 0:05:19]} 9. b3 {[%emt 0:06:10]} Nc5 {[%emt 0:05:01]} 10. Bb2 {[%emt 0:03:02]} Ne6 {[%emt 0:02:29]} (10... h5 $11) 11. Nxe6 {[%emt 0:01:08]} fxe6 {[%emt 0:00:03]} 12. Qd2 {[%emt 0:02:04]} Rb8 {[%emt 0:06:30]} 13. Rad1 {[%emt 0:03:54]} a6 {[%emt 0:01:13]} 14. e4 {[%emt 0:08:44]} e5 {[%emt 0:00:39]} 15. c5 {[%emt 0:00:44]} Ne8 {[%emt 0:03:57]} 16. Ba3 {[%emt 0:02:43]} Rf7 {[%emt 0:02:01]} 17. cxd6 {[%emt 0:06:32]} cxd6 {[%emt 0:01:52]} 18. Bxd6 {[%emt 0:04:39]} Rd7 {[%emt 0:00:49]} 19. Qd5+ {[%emt 0:00:15]} Kh8 {[%emt 0:00:03]} 20. Bxb8 {[%emt 0:01:37]} Rxd5 {[%emt 0:00:13]} 21. Rxd5 {[%emt 0:02:18]} Qe7 {[%emt 0:01:16]} 22. Rfd1 {[%emt 0:03:14]} Bg4 {[%emt 0:02:58]} 23. f3 {[%emt 0:02:15]} Be6 {[%emt 0:00:08]} 24. Bd6 {[%emt 0:00:21]} Nxd6 {[%emt 0:01:52]} 25. Rxd6 {[%emt 0:00:07]} Bf8 {[%emt 0:01:40]} 26. R6d3 {[%emt 0:00:59]} Qb4 {[%emt 0:06:11]} 27. Nd5 {[%emt 0:02:14]} Bc5+ {[%emt 0:01:00]} 28. Kh1 {[%emt 0:00:11]} Qa5 {[%emt 0:01:03]} 29. R3d2 {[%emt 0:01:20]} g5 {[%emt 0:02:24]} 30. Rc2 {[%emt 0:06:11]} Bd4 {[%emt 0:14:57]} 31. f4 {[%emt 0:05:07]} gxf4 {[%emt 0:01:53]} 32. gxf4 {[%emt 0:01:05]} exf4 {[%emt 0:07:45]} 33. Nxf4 {[%emt 0:01:19]} Bg4 {[%emt 0:00:19]} 34. Rf1 {[%emt 0:00:53]} Qe5 {[%emt 0:05:18]} 35. h3 {[%emt 0:09:38]} Bd7 {[%emt 0:00:21]} 36. Rd2 {[%emt 0:11:07]} Bb5 {[%emt 0:04:22]} 37. Nd3 {[%emt 0:01:17]} Qg5 {[%emt 0:02:28]} 38. Rdd1 {[%emt 0:00:57]} Bc6 {[%emt 0:08:22]} 39. Nf4 {[%emt 0:02:06]} Bf6 {[%emt 0:01:36]} 40. Ne6 {[%emt 0:00:48]} Qh5 {[%emt 0:00:54]} 41. Rd8+ {[%emt 0:01:10]} 1-0

[Event "Marshall CC U2400 January 2024"]
[Site "New York"]
[Date "2024.01.21"]
[Round "3.3"]
[White "Solomon, Ciprian"]
[Black "Bonin, Jay"]
[Result "1/2-1/2"]
[ECO "A29"]
[WhiteElo "1860"]
[BlackElo "2166"]
[Annotator "RC"]
[PlyCount "98"]
[EventDate "2024.01.19"]
[EventType "swiss"]
[EventCountry "USA"]
[SourceTitle "playchess.com"]
[Source "ChessBase"]
[SourceQuality "1"]
[TimeControl "5400+30"]

1. c4 {[%emt 0:00:09]} Nc6 {[%emt 0:00:18]} 2. Nc3 {[%emt 0:00:14]} e5 {[%emt 0:00:15]} 3. Nf3 {[%emt 0:00:38]} Nf6 {[%emt 0:00:10]} 4. d3 {[%emt 0:01:45]} d5 {[%emt 0:01:58]} 5. cxd5 {[%emt 0:00:11]} Nxd5 {[%emt 0:00:05]} 6. g3 {[%emt 0:00:32]} Nb6 {[%emt 0:01:30]} 7. Bg2 {[%emt 0:00:16]} Be7 {[%emt 0:00:08]} 8. O-O {[%emt 0:00:14]} O-O {[%emt 0:00:13]} 9. Bd2 {[%emt 0:00:29]} Be6 {[%emt 0:00:38]} 10. Ne4 {[%emt 0:01:59]} f6 {[%emt 0:02:06]} 11. Bc3 {[%emt 0:00:32]} f5 {[%emt 0:03:14]} 12. Ned2 {[%emt 0:00:57]} Bf6 {[%emt 0:00:45]} 13. b3 {[%emt 0:02:02]} Nd5 {[%emt 0:01:27]} 14. Bb2 {[%emt 0:02:44]} e4 {[%emt 0:00:11]} 15. Bxf6 {[%emt 0:00:22]} Qxf6 {[%emt 0:05:47]} 16. dxe4 {[%emt 0:00:48]} Nc3 {[%emt 0:00:08]} 17. e5 {[%emt 0:01:17]} Nxe5 {[%emt 0:00:07]} 18. Qe1 {[%emt 0:00:22]} c6 {[%emt 0:00:57]} 19. Nxe5 {[%emt 0:00:42]} Qxe5 {[%emt 0:00:09]} 20. e3 {[%emt 0:00:09]} Bd5 {[%emt 0:03:00]} 21. Nf3 {[%emt 0:04:50]} Bxf3 {[%emt 0:00:12]} 22. Bxf3 {[%emt 0:00:04]} Rad8 {[%emt 0:00:39]} 23. a3 {[%emt 0:00:29]} Rd3 {[%emt 0:00:26]} 24. Be2 {[%emt 0:00:48]} Nxe2+ {[%emt 1:18:07]} 25. Qxe2 {[%emt 0:00:12]} Rxb3 {[%emt 0:00:00]} 26. Qc4+ {[%emt 0:03:03]} Qd5 {[%emt 0:00:00]} 27. Qxd5+ {[%emt 0:00:20]} cxd5 {[%emt 0:00:00]} 28. Rfd1 {[%emt 0:00:06]} Rd8 {[%emt 0:00:00]} 29. Rd4 {[%emt 0:00:13]} Kf7 {[%emt 0:00:00]} 30. Rc1 {[%emt 0:00:30]} Rd7 {[%emt 0:00:00]} 31. a4 {[%emt 0:00:13]} g5 {[%emt 0:00:00]} 32. h4 {[%emt 0:00:27]} g4 {[%emt 0:00:00]} 33. Rc8 {[%emt 0:01:46]} b5 {[%emt 0:00:00]} 34. axb5 {[%emt 0:00:30]} Rxb5 {[%emt 0:00:00]} 35. Rf4 {[%emt 0:00:10]} Ke6 {[%emt 0:00:00]} 36. Re8+ {[%emt 0:02:05]} Kd6 {[%emt 0:00:00]} 37. Rxf5 {[%emt 0:00:25]} Rc7 {[%emt 0:00:00]} 38. Rg8 {[%emt 0:02:04]} Rc4 {[%emt 0:00:00]} 39. Rh5 {[%emt 0:01:56]} Kc5 {[%emt 0:00:00]} 40. Rxh7 {[%emt 0:00:26]} a5 {[%emt 0:00:00]} 41. Ra7 {[%emt 0:00:39]} Kb4 {[%emt 0:00:00]} 42. h5 {[%emt 0:03:01]} Rb6 {[%emt 0:00:00]} 43. Rg6 {[%emt 0:00:56]} Rxg6 {[%emt 0:00:00]} 44. hxg6 {[%emt 0:00:09]} Rc6 {[%emt 0:00:00]} 45. g7 {[%emt 0:03:01]} Rg6 {[%emt 0:00:00]} 46. f4 {[%emt 0:00:17]} gxf3 {[%emt 0:00:00]} 47. Kf2 {[%emt 0:00:07]} a4 {[%emt 0:00:00]} 48. Kxf3 {[%emt 0:00:05]} a3 {[%emt 0:00:00]} 49. Kf4 {[%emt 0:00:41]} Kb3 {[%emt 0:00:00]} 1/2-1/2

[Event "Marshall CC U2400 January 2024"]
[Site "New York"]
[Date "2024.01.21"]
[Round "3.4"]
[White "Hyatt, Jessica"]
[Black "Bafna, Mihir"]
[Result "1-0"]
[ECO "E32"]
[WhiteElo "1759"]
[BlackElo "1761"]
[Annotator "NA RC COMBH"]
[PlyCount "111"]
[EventDate "2024.01.19"]
[EventType "swiss"]
[EventCountry "USA"]
[SourceTitle "playchess.com"]
[Source "ChessBase"]
[SourceQuality "1"]
[TimeControl "5400+30"]

1. d4 {[%emt 0:16:06]} Nf6 {[%emt 0:00:03]} 2. c4 {[%emt 0:00:05]} e6 {[%emt 0:00:03]} 3. Nc3 {[%emt 0:00:07]} Bb4 {[%emt 0:00:04]} 4. Qc2 {[%emt 0:00:04]} O-O {[%emt 0:00:17]} 5. a3 {[%emt 0:00:49]} Bxc3+ {[%emt 0:00:13]} 6. Qxc3 {[%emt 0:00:06]} d5 {[%emt 0:00:03]} 7. Nf3 {[%emt 0:00:07]} dxc4 {[%emt 0:01:00]} 8. Qxc4 {[%emt 0:00:04]} b6 {[%emt 0:00:07]} 9. g3 {[%emt 0:00:20]} Bb7 {[%emt 0:00:13]} 10. Bg2 {[%emt 0:00:04]} Nbd7 {[%emt 0:00:22]} 11. O-O {[%emt 0:00:21]} Rc8 {[%emt 0:01:02]} 12. b4 {[%emt 0:07:04]} c5 {[%emt 0:01:47]} 13. dxc5 {[%emt 0:00:30]} bxc5 {[%emt 0:00:18]} 14. Bb2 {[%emt 0:00:25]} Qb6 {[%emt 0:02:41]} 15. Qh4 {[%emt 0:11:18]} a5 {[%emt 0:05:19]} 16. Bxf6 {[%emt 0:04:56]} Nxf6 {[%emt 0:00:09]} 17. bxc5 {[%emt 0:02:10]} Qxc5 {[%emt 0:00:58]} 18. e3 {[%emt 0:01:13]} e5 {[%emt 0:04:55]} 19. g4 {[%emt 0:01:32]} Qc3 {[%emt 0:07:30]} 20. Qg5 {[%emt 0:08:11]} Rc5 {[%emt 0:02:45]} 21. Qh4 {[%emt 0:02:45]} Rc4 {[%emt 0:07:08]} 22. h3 {[%emt 0:00:25]} h5 {[%emt 0:00:41]} 23. Qg3 {[%emt 0:12:58]} hxg4 {[%emt 0:02:05]} 24. Nxe5 {[%emt 0:00:54]} Bxg2 {[%emt 0:00:46]} 25. Rfc1 {[%emt 0:05:16]} Qxc1+ {[%emt 0:00:29]} 26. Rxc1 {[%emt 0:25:40]} Rxc1+ 27. Kxg2 {[%emt 0:00:00]} gxh3+ {[%emt 0:00:57]} 28. Qxh3 {[%emt 0:00:00]} Rc3 {[%emt 0:03:26]} 29. Qf5 {[%emt 0:00:00]} a4 {[%emt 0:05:10]} 30. Qf4 {[%emt 0:00:00]} Rxa3 {[%emt 0:01:00]} 31. Nc6 {[%emt 0:00:00]} Re8 {[%emt 0:02:08]} 32. Qb4 {[%emt 0:00:00]} Ra2 {[%emt 0:02:44]} 33. Ne7+ {[%emt 0:00:00]} Kh8 {[%emt 0:00:03]} 34. Qc4 {[%emt 0:00:00]} Rxe7 {[%emt 0:01:53]} 35. Qxa2 {[%emt 0:00:00]} Ra7 {[%emt 0:00:26]} 36. Qb2 {[%emt 0:00:00]} Ra5 {[%emt 0:03:38]} 37. Qb4 {[%emt 0:00:00]} Ra6 {[%emt 0:01:40]} 38. Qb5 {[%emt 0:00:00]} Ra8 {[%emt 0:00:30]} 39. Qb7 {[%emt 0:00:05]} Ra5 {[%emt 0:00:28]} 40. Qe7 {[%emt 0:01:13]} Ra8 {[%emt 0:00:54]} 41. Qb7 {[%emt 0:00:49]} Ra5 {[%emt 0:00:07]} 42. Qc8+ {[%emt 0:04:26]} Kh7 {[%emt 0:00:47]} 43. Qd8 {[%emt 0:00:47]} Ra7 {[%emt 0:00:50]} 44. Qb8 {[%emt 0:00:32]} Ra5 {[%emt 0:00:50]} 45. Qd8 {[%emt 0:00:41]} Ra7 {[%emt 0:00:14]} 46. Qd3+ {[%emt 0:00:18]} Kg8 {[%emt 0:02:26]} 47. Qa3 {[%emt 0:00:22]} Nd7 {[%emt 0:01:07]} 48. f4 {[%emt 0:00:42]} Ra6 {[%emt 0:05:19]} 49. Qd3 {[%emt 0:00:23]} Nc5 {[%emt 0:01:06]} 50. Qb5 {[%emt 0:00:14]} a3 {[%emt 0:00:46]} 51. Qxc5 {[%emt 0:00:06]} Ra8 {[%emt 0:00:16]} 52. Qd5 {[%emt 0:00:08]} Ra7 {[%emt 0:00:33]} 53. Qa2 {[%emt 0:00:09]} Kf8 {[%emt 0:01:00]} 54. Kf3 {[%emt 0:00:36]} Ke7 {[%emt 0:00:38]} 55. Qc4 {[%emt 0:00:55]} Ke8 {[%emt 0:02:43]} 56. Qc8+ {[%emt 0:02:34]} 1-0